fUSD/lending_fUSD_20251222
["ID","MTS","AMOUNT","RATE_DAILY","PERIOD"]
[399446886,1766362254906,-612.0,0.00029603,2]
[399446887,1766362254916,-1609.0,0.00029603,2]
[399446888,1766362254926,-1262.0,0.00029603,2]
[399446889,1766362254935,-518.0,0.00029603,2]
[399446890,1766362254945,-911.0,0.00029603,2]
[399446891,1766362254955,-1197.0,0.00029603,2]
[399446892,1766362254964,-6529.0,0.00029603,2]
[399446893,1766362254974,-2429.0,0.00029603,2]
[399446894,1766362254984,-4803.0,0.00029603,2]
[399446895,1766362254994,-151.1219817,0.00029783,2]
[399446896,1766362255004,-78419.04403856,0.000299,2]
[399446897,1766362255014,-235.79021318,0.0002999,2]
[399446898,1766362255025,-617.64561,0.0003,2]
[399446899,1766362255034,-16360.77307989,0.0003,2]
[399446900,1766362255043,-3003.93388889,0.0003,2]
[399446901,1766362255053,-19751.40771635,0.0003,2]
[399446902,1766362255064,-1805.98854328,0.0003,2]
[399446903,1766362255073,-438.46860323,0.0003,2]
[399446904,1766362255083,-161.99409586,0.0003,2]
[399446905,1766362255092,-1066.79550604,0.0003013,2]
[399446906,1766362255102,-13764.81239852,0.0003013,2]
[399446907,1766362255111,-630.00386335,0.0003013,2]
[399446908,1766362255121,-5027.12579899,0.0003013,2]
[399446909,1766362255130,-200.4199276,0.0003013,2]
[399446910,1766362255140,-1216.66299199,0.0003013,2]
[399446911,1766362255150,-7682.94103563,0.0003013,2]
[399446912,1766362255160,-248.64,0.00030137,2]
[399446913,1766362255169,-447.3913417,0.00030265,2]
[399446914,1766362255178,-398.86540225,0.00030265,2]
[399446915,1766362255188,-150.0,0.00030348,2]
[399446916,1766362255198,-150.0,0.00030348,2]
[399446917,1766362255207,-150.0,0.00030348,2]
[399446918,1766362255216,-150.0,0.00030348,2]
[399446919,1766362255225,-150.0,0.00030778,7]
[399446920,1766362255235,-150.0,0.00030778,7]
[399446921,1766362255244,-150.0,0.00030778,7]
[399446922,1766362255253,-3270.2,0.00030796,2]
[399446923,1766362255263,-2595.50228084,0.0003084,2]
[399446924,1766362255273,-78504.77428799,0.0003095,2]
[399446925,1766362255282,-600.0,0.00031,2]
[399446926,1766362255291,-152.0,0.00031497,3]
[399446927,1766362255301,-463.94482134,0.00031634,2]
[399446928,1766362255310,-2000.0,0.000318,2]
[399446929,1766362255320,-878.51,0.00032,7]
[399446930,1766362255330,-5525.0,0.000321,5]
[399446931,1766362255339,-888.44603174,0.000323,2]
[399446932,1766362255348,-3456.0,0.00032603,2]
[399446933,1766362255357,-1326.0,0.00032603,2]
[399446934,1766362255367,-612.0,0.00032603,2]
[399446935,1766362255376,-1609.0,0.00032603,2]
[399446936,1766362255385,-1262.0,0.00032603,2]
[399446937,1766362255395,-518.0,0.00032603,2]
[399446938,1766362255404,-911.0,0.00032603,2]
[399446939,1766362255413,-1197.0,0.00032603,2]
[399446940,1766362255422,-6529.0,0.00032603,2]
[399446941,1766362255432,-2429.0,0.00032603,2]
[399446942,1766362255441,-4803.0,0.00032603,2]
[399446943,1766362255451,-4797.2018314,0.000328,2]
[399446944,1766362255460,-3270.2,0.00032847,3]
[399446945,1766362255469,-248.64,0.00032877,2]
[399446946,1766362255479,-342.55,0.00032877,2]
[399446947,1766362255489,-150.0,0.00032877,5]
[399446948,1766362255500,-300.0,0.00032877,2]
[399446949,1766362255509,-150.0,0.00032877,2]
[399446950,1766362255519,-1003.1552,0.00032999,2]
[399446951,1766362255530,-1934.09763958,0.00033,2]
[399446952,1766362255539,-1903.54614491,0.00033,2]
[399446953,1766362255549,-761.57397169,0.00033,2]
[399446955,1766362255559,-174.0,0.00033,14]
[399446956,1766362255568,-650.0,0.00033,2]
[399446957,1766362255580,-481.11077973,0.00033003,2]
[399446958,1766362255590,-1000.0,0.00033165,2]
[399446959,1766362255600,-1374.58,0.000332,2]
[399446960,1766362255610,-150.0,0.00033348,2]
[399446961,1766362255621,-150.0,0.00033348,2]
[399446962,1766362255630,-150.0,0.00033348,2]
[399446963,1766362255640,-191.77,0.000334,14]
[399446964,1766362255650,-252.34,0.000334,14]
[399446965,1766362255659,-207.34533345,0.00033425,5]
[399446966,1766362255669,-150.0,0.00033699,2]
[399446967,1766362255679,-150.0,0.00033699,2]
[399446968,1766362255688,-150.0,0.00033699,2]
[399446969,1766362255698,-150.0,0.00033699,2]
[399446970,1766362255707,-150.0,0.00033699,2]
[399446971,1766362255717,-500.0,0.00033972,14]
[399446972,1766362255727,-500.0,0.00033972,14]
[399446973,1766362255737,-500.0,0.00034329,2]
[399446974,1766362255746,-498.91187858,0.00034372,2]
[399446975,1766362255756,-150.0,0.00034521,2]
[399446976,1766362255766,-150.0,0.00034521,2]
[399446977,1766362255775,-150.0,0.00034521,2]
[399446978,1766362255785,-150.0,0.00034521,2]
[399446979,1766362255794,-150.0,0.00034521,2]
[399446980,1766362255804,-300.0,0.00034521,2]
[399446981,1766362255814,-500.0,0.00034794,14]
[399446982,1766362255823,-300.0,0.00034863,2]
[399446983,1766362255832,-300.0,0.00034867,2]
[399446984,1766362255842,-449697.25739006,0.00034887,2]
[399446985,1766362255851,-3270.2,0.00034898,4]
[399446986,1766362255861,-300.0,0.00034985,2]
[399446987,1766362255870,-300.0,0.00034995,2]
[399446988,1766362255880,-23289.85364251,0.00035,2]
[399446989,1766362255889,-300.0,0.00035003,2]
[399446990,1766362255899,-300.0,0.00035039,2]
[399446991,1766362255908,-245.17806886,0.00035063,2]
[399446992,1766362255917,-300.0,0.00035065,2]
[399446993,1766362255926,-300.0,0.00035071,2]
[399446994,1766362255936,-300.0,0.00035078,2]
[399446995,1766362255945,-300.0,0.0003512,2]
[399446996,1766362255954,-300.0,0.00035172,2]
[399446997,1766362255963,-300.0,0.00035229,2]
[399446998,1766362255972,-300.0,0.0003526,2]
[399446999,1766362255981,-300.0,0.00035266,2]
[399447000,1766362255991,-300.0,0.0003527,2]
[399447001,1766362256000,-300.0,0.0003527,2]
[399447002,1766362256009,-300.0,0.00035287,2]
[399447003,1766362256019,-300.0,0.00035296,2]
[399447004,1766362256028,-300.0,0.00035312,2]
[399447005,1766362256037,-300.0,0.00035333,2]
[399447006,1766362256047,-300.0,0.00035351,2]
[399447007,1766362256056,-300.0,0.00035373,2]
[399447008,1766362256066,-878.51,0.000354,14]
[399447009,1766362256076,-300.0,0.00035405,2]
[399447010,1766362256085,-300.0,0.00035407,2]
[399447011,1766362256095,-300.0,0.00035409,2]
[399447012,1766362256104,-150.0,0.0003542,2]
[399447013,1766362256116,-300.0,0.00035426,2]
[399447014,1766362256126,-300.0,0.00035451,2]
[399447015,1766362256136,-300.0,0.00035465,2]
[399447016,1766362256145,-300.0,0.00035466,2]
[399447017,1766362256154,-300.0,0.00035485,2]
[399447018,1766362256163,-1244.49296755,0.000355,2]
[399447019,1766362256173,-2000.0,0.000355,2]
[399447020,1766362256182,-300.0,0.00035506,2]
[399447021,1766362256191,-300.0,0.00035538,2]
[399447022,1766362256200,-300.0,0.0003554,2]
[399447023,1766362256210,-300.0,0.00035546,2]
[399447024,1766362256219,-300.0,0.00035551,2]
[399447025,1766362256228,-300.0,0.00035559,2]
[399447026,1766362256238,-1000.0,0.0003557,2]
[399447027,1766362256247,-1000.0,0.0003557,2]
[399447028,1766362256257,-1000.0,0.0003557,2]
[399447029,1766362256266,-1870.47838841,0.0003557,2]
[399447030,1766362256277,-150.0,0.000356,13]
[399447031,1766362256286,-776.0,0.000356,2]
[399447032,1766362256296,-300.0,0.00035601,2]
[399447033,1766362256305,-3456.0,0.00035603,2]
[399447034,1766362256314,-1326.0,0.00035603,2]
[399447035,1766362256324,-612.0,0.00035603,2]
[399447036,1766362256333,-1609.0,0.00035603,2]
[399447037,1766362256341,-1262.0,0.00035603,2]
[399447038,1766362256351,-518.0,0.00035603,2]
[399447039,1766362256360,-911.0,0.00035603,2]
[399447040,1766362256369,-1197.0,0.00035603,2]
[399447041,1766362256378,-6529.0,0.00035603,2]
[399447042,1766362256387,-2429.0,0.00035603,2]
[399447043,1766362256396,-4803.0,0.00035603,2]
[399447044,1766362256404,-293.54283337,0.00035609,2]
[399447045,1766362256413,-1000.0,0.00035609,2]
[399447046,1766362256423,-200.0,0.0003561,2]
[399447047,1766362256431,-1000.0,0.00035612,2]
[399447048,1766362256440,-679.2,0.00035616,17]
[399447049,1766362256449,-500.0,0.00035616,14]
[399447050,1766362256458,-500.0,0.00035616,14]
[399447051,1766362256467,-248.64,0.00035616,2]
[399447052,1766362256477,-517.37161808,0.00035741,2]
[399447053,1766362256486,-1000.0,0.00035894,14]
[399447054,1766362256495,-200.0,0.00035966,2]
[399447055,1766362256505,-500.03171203,0.00036,60]
[399447056,1766362256514,-1374.58,0.000361,2]
[399447057,1766362256523,-1000.0,0.00036168,14]
[399447058,1766362256532,-200.0,0.00036326,2]
[399447059,1766362256541,-1000.0,0.00036442,14]
[399447060,1766362256549,-150.0,0.000366,15]
[399447061,1766362256558,-200.0,0.00036689,2]
[399447062,1766362256567,-1000.0,0.00036716,14]
[399447063,1766362256579,-395.2689,0.00036888,7]
[399447064,1766362256593,-3270.2,0.00036949,5]
[399447065,1766362256602,-151.0,0.00036986,31]
[399447066,1766362256611,-151.0,0.00036986,31]
[399447067,1766362256620,-151.0,0.00036986,31]
[399447068,1766362256629,-792.05,0.00036986,31]
[399447069,1766362256638,-792.05,0.00036986,31]
[399447070,1766362256647,-792.05,0.00036986,31]
[399447071,1766362256656,-792.05,0.00036986,31]
[399447072,1766362256665,-792.05,0.00036986,31]
[399447073,1766362256674,-792.05,0.00036986,31]
[399447074,1766362256683,-792.05,0.00036986,31]
[399447075,1766362256692,-792.05,0.00036986,31]
[399447076,1766362256702,-151.81547,0.00036986,31]
[399447077,1766362256711,-792.05,0.00036986,31]
[399447078,1766362256720,-792.05,0.00036986,31]
[399447079,1766362256729,-792.05,0.00036986,31]
[399447080,1766362256738,-792.05,0.00036986,31]
[399447081,1766362256747,-792.05,0.00036986,31]
[399447082,1766362256756,-792.05,0.00036986,31]
[399447083,1766362256766,-792.05,0.00036986,31]
[399447084,1766362256775,-792.05,0.00036986,31]
[399447085,1766362256784,-792.05,0.00036986,31]
[399447086,1766362256793,-792.05,0.00036986,31]
[399447087,1766362256802,-792.05,0.00036986,31]
[399447088,1766362256812,-792.05,0.00036986,31]
[399447089,1766362256821,-151.0,0.00036986,31]
[399447090,1766362256831,-151.0,0.00036986,31]
[399447091,1766362256840,-151.0,0.00036986,31]
[399447092,1766362256849,-151.0,0.00036986,31]
[399447093,1766362256858,-151.0,0.00036986,31]
[399447094,1766362256867,-151.0,0.00036986,31]
[399447095,1766362256875,-151.0,0.00036986,31]
[399447096,1766362256885,-151.0,0.00036986,31]
[399447097,1766362256894,-151.0,0.00036986,31]
[399447098,1766362256903,-151.0,0.00036986,31]
[399447099,1766362256912,-151.0,0.00036986,31]
[399447100,1766362256922,-151.0,0.00036986,31]
[399447101,1766362256931,-218.589672,0.00036986,31]
[399447102,1766362256940,-151.0,0.00036986,31]
[399447103,1766362256949,-151.0,0.00036986,31]
[399447104,1766362257025,-151.0,0.00036986,31]
[399447105,1766362257035,-151.0,0.00036986,31]
[399447106,1766362257045,-151.0,0.00036986,31]
[399447107,1766362257054,-151.0,0.00036986,31]
[399447108,1766362257064,-151.0,0.00036986,31]
[399447109,1766362257073,-151.0,0.00036986,31]
[399447110,1766362257081,-151.0,0.00036986,31]
[399447111,1766362257090,-221.559629,0.00036986,31]
[399447112,1766362257099,-536.32,0.00036986,2]
[399447113,1766362257107,-178.44,0.00036986,2]
[399447114,1766362257116,-212.32,0.00036986,2]
[399447115,1766362257126,-178.44,0.00036986,2]
[399447116,1766362257135,-178.44,0.00036986,2]
[399447117,1766362257144,-178.44,0.00036986,2]
[399447118,1766362257154,-1000.0,0.0003699,14]
[399447119,1766362257163,-500.0,0.00037,61]
[399447120,1766362257173,-5137.77769,0.0003705,30]
[399447121,1766362257182,-200.0,0.00037056,2]
[399447122,1766362257191,-536.51436795,0.0003711,2]
[399447123,1766362257200,-500.0,0.0003726,14]
[399447124,1766362257210,-500.0,0.0003726,14]
[399447125,1766362257219,-1000.0,0.00037264,14]
[399447126,1766362257227,-500.0,0.00037356,14]
[399447127,1766362257237,-252.34,0.000375,14]
[399447128,1766362257246,-1000.0,0.00037538,14]
[399447129,1766362257255,-200.0,0.000376,16]
[399447130,1766362257264,-152.0,0.00037755,4]
[399447131,1766362257274,-487.23,0.00037808,2]
[399447132,1766362257285,-356.88,0.00037808,2]
[399447133,1766362257295,-1000.0,0.00037812,14]
[399447134,1766362257304,-191.77,0.000379,14]
[399447135,1766362257314,-1374.58,0.000379,2]
[399447136,1766362257325,-500.0,0.00037921,30]
[399447137,1766362257335,-500.0,0.00037921,30]
[399447138,1766362257346,-325.40799123,0.00037921,30]
[399447139,1766362257355,-500.0,0.00037921,30]
[399447140,1766362257364,-50000.0,0.00038,18]
[399447141,1766362257373,-500.0,0.00038,62]
[399447142,1766362257382,-348.0359741,0.00038,120]
[399447143,1766362257391,-1343.0,0.00038033,20]
[399447144,1766362257401,-1000.0,0.00038086,14]
[399447145,1766362257410,-2000.0,0.00038348,31]
[399447146,1766362257419,-893.63,0.00038355,60]
[399447147,1766362257429,-151.0,0.00038356,120]
[399447148,1766362257438,-151.0,0.00038356,120]
[399447149,1766362257447,-151.0,0.00038356,120]
[399447150,1766362257456,-151.0,0.00038356,120]
[399447151,1766362257465,-151.0,0.00038356,120]
[399447152,1766362257474,-151.0,0.00038356,120]
[399447153,1766362257483,-151.0,0.00038356,120]
[399447154,1766362257493,-151.0,0.00038356,120]
[399447155,1766362257502,-151.0,0.00038356,120]
[399447156,1766362257511,-151.0,0.00038356,120]
[399447157,1766362257520,-151.0,0.00038356,120]
[399447158,1766362257529,-151.0,0.00038356,120]
[399447159,1766362257538,-190.2,0.00038356,120]
[399447160,1766362257547,-300.0,0.00038356,120]
[399447161,1766362257556,-1999.0,0.0003836,14]
[399447162,1766362257565,-800.0,0.00038371,14]
[399447163,1766362257574,-800.0,0.00038371,14]
[399447164,1766362257586,-800.0,0.00038371,14]
[399447165,1766362257596,-800.0,0.00038371,14]
[399447166,1766362257605,-800.0,0.00038371,14]
[399447167,1766362257615,-800.0,0.00038371,14]
[399447168,1766362257624,-800.0,0.00038371,14]
[399447169,1766362257633,-800.0,0.00038371,14]
[399447170,1766362257642,-150.0,0.000384,18]
[399447171,1766362257653,-186.5,0.000384,38]
[399447172,1766362257663,-246.957396,0.000384,16]
[399447173,1766362257672,-1500.0,0.000384,27]
[399447174,1766362257682,-1343.0,0.00038425,20]
[399447175,1766362257692,-1000.0,0.0003847,2]
[399447176,1766362257701,-170248.85294246,0.00038474,2]
[399447177,1766362257710,-25000.0,0.00038474,10]
[399447178,1766362257720,-20746.90904315,0.00038474,10]
[399447179,1766362257730,-556.36539957,0.00038479,2]
[399447180,1766362257739,-302.70668584,0.0003856,2]
[399447181,1766362257748,-300.0,0.0003856,2]
[399447182,1766362257757,-303.74388553,0.0003856,2]
[399447183,1766362257767,-300.0,0.0003856,2]
[399447184,1766362257776,-300.0,0.0003856,2]
[399447185,1766362257785,-367.30463184,0.0003856,2]
[399447186,1766362257794,-300.0,0.0003856,2]
[399447187,1766362257804,-302.95619983,0.0003856,2]
[399447188,1766362257813,-580.67035362,0.0003856,2]
[399447189,1766362257823,-300.0,0.0003856,2]
[399447190,1766362257832,-594.28559279,0.0003856,2]
[399447191,1766362257841,-363.49948483,0.0003856,2]
[399447192,1766362257851,-300.0,0.0003856,2]
[399447193,1766362257860,-300.0,0.0003856,2]
[399447194,1766362257870,-300.0,0.0003856,2]
[399447195,1766362257879,-300.0,0.0003856,2]
[399447196,1766362257888,-300.0,0.0003856,2]
[399447197,1766362257898,-302.57000292,0.0003856,2]
[399447198,1766362257909,-576.44899553,0.0003856,2]
[399447199,1766362257919,-302.70668584,0.0003856,2]
[399447200,1766362257929,-400.19812894,0.0003856,2]
[399447201,1766362257938,-303.74388553,0.0003856,2]
[399447202,1766362257947,-300.0,0.0003856,2]
[399447203,1766362257960,-300.0,0.0003856,2]
[399447204,1766362257969,-367.30463184,0.0003856,2]
[399447205,1766362257978,-539.72940195,0.0003856,2]
[399447206,1766362257987,-302.95619983,0.0003856,2]
[399447207,1766362257997,-300.0,0.0003856,2]
[399447208,1766362258006,-594.28559279,0.0003856,2]
[399447209,1766362258015,-363.49948483,0.0003856,2]
[399447210,1766362258025,-300.0,0.0003856,2]
[399447211,1766362258034,-300.0,0.0003856,2]
[399447212,1766362258044,-300.0,0.0003856,2]
[399447213,1766362258053,-300.0,0.0003856,2]
[399447214,1766362258062,-300.0,0.0003856,2]
[399447215,1766362258071,-302.57000292,0.0003856,2]
[399447216,1766362258081,-576.44899553,0.0003856,2]
[399447217,1766362258091,-302.70668584,0.0003856,2]
[399447218,1766362258100,-303.74388553,0.0003856,2]
[399447219,1766362258109,-300.0,0.0003856,2]
[399447220,1766362258119,-308.57281289,0.0003856,2]
[399447221,1766362258128,-367.30463184,0.0003856,2]
[399447222,1766362258137,-302.95619983,0.0003856,2]
[399447223,1766362258147,-300.0,0.0003856,2]
[399447224,1766362258157,-594.28559279,0.0003856,2]
[399447225,1766362258167,-363.49948483,0.0003856,2]
[399447226,1766362258176,-300.0,0.0003856,2]
[399447227,1766362258186,-300.0,0.0003856,2]
[399447228,1766362258195,-330.78308651,0.0003856,2]
[399447229,1766362258205,-500.3558125,0.0003856,2]
[399447230,1766362258214,-300.0,0.0003856,2]
[399447231,1766362258224,-302.57000292,0.0003856,2]
[399447232,1766362258234,-576.44899553,0.0003856,2]
[399447233,1766362258244,-302.70668584,0.0003856,2]
[399447234,1766362258253,-303.74388553,0.0003856,2]
[399447235,1766362258263,-300.0,0.0003856,2]
[399447236,1766362258273,-367.30463184,0.0003856,2]
[399447237,1766362258282,-302.95619983,0.0003856,2]
[399447238,1766362258291,-300.0,0.0003856,2]
[399447239,1766362258301,-594.28559279,0.0003856,2]
[399447240,1766362258311,-363.49948483,0.0003856,2]
[399447241,1766362258321,-300.0,0.0003856,2]
[399447242,1766362258335,-301.45920067,0.0003856,2]
[399447243,1766362258346,-300.0,0.0003856,2]
[399447244,1766362258356,-302.57000292,0.0003856,2]
[399447245,1766362258365,-576.44899553,0.0003856,2]
[399447246,1766362258375,-302.70668584,0.0003856,2]
[399447247,1766362258384,-303.74388553,0.0003856,2]
[399447248,1766362258394,-361.56884868,0.0003856,2]
[399447249,1766362258403,-367.30463184,0.0003856,2]
[399447250,1766362258413,-302.95619983,0.0003856,2]
[399447251,1766362258422,-314.47858593,0.0003856,2]
[399447252,1766362258432,-594.28559279,0.0003856,2]
[399447253,1766362258441,-363.49948483,0.0003856,2]
[399447254,1766362258451,-300.0,0.0003856,2]
[399447255,1766362258460,-300.0,0.0003856,2]
[399447256,1766362258470,-302.57000292,0.0003856,2]
[399447257,1766362258480,-576.44899553,0.0003856,2]
[399447258,1766362258490,-302.70668584,0.0003856,2]
[399447259,1766362258500,-303.74388553,0.0003856,2]
[399447260,1766362258510,-367.30463184,0.0003856,2]
[399447261,1766362258520,-302.95619983,0.0003856,2]
[399447262,1766362258530,-594.28559279,0.0003856,2]
[399447263,1766362258540,-363.49948483,0.0003856,2]
[399447264,1766362258549,-300.0,0.0003856,2]
[399447265,1766362258558,-446.30280704,0.0003856,2]
[399447266,1766362258568,-302.57000292,0.0003856,2]
[399447267,1766362258582,-576.44899553,0.0003856,2]
[399447268,1766362258591,-302.70668584,0.0003856,2]
[399447269,1766362258601,-303.74388553,0.0003856,2]
[399447270,1766362258611,-367.30463184,0.0003856,2]
[399447271,1766362258622,-302.95619983,0.0003856,2]
[399447272,1766362258633,-594.28559279,0.0003856,2]
[399447273,1766362258643,-363.49948483,0.0003856,2]
[399447274,1766362258653,-300.0,0.0003856,2]
[399447275,1766362258663,-302.57000292,0.0003856,2]
[399447276,1766362258672,-576.44899553,0.0003856,2]
[399447277,1766362258682,-302.70668584,0.0003856,2]
[399447278,1766362258691,-303.74388553,0.0003856,2]
[399447279,1766362258701,-367.30463184,0.0003856,2]
[399447280,1766362258710,-302.95619983,0.0003856,2]
[399447281,1766362258719,-594.28559279,0.0003856,2]
[399447282,1766362258729,-363.49948483,0.0003856,2]
[399447283,1766362258738,-300.0,0.0003856,2]
[399447284,1766362258748,-302.57000292,0.0003856,2]
[399447285,1766362258757,-576.44899553,0.0003856,2]
[399447286,1766362258767,-302.70668584,0.0003856,2]
[399447287,1766362258776,-303.74388553,0.0003856,2]
[399447288,1766362258786,-367.30463184,0.0003856,2]
[399447289,1766362258796,-302.95619983,0.0003856,2]
[399447290,1766362258805,-594.28559279,0.0003856,2]
[399447291,1766362258816,-363.49948483,0.0003856,2]
[399447292,1766362258826,-300.0,0.0003856,2]
[399447293,1766362258836,-302.57000292,0.0003856,2]
[399447294,1766362258845,-576.44899553,0.0003856,2]
[399447295,1766362258855,-302.70668584,0.0003856,2]
[399447296,1766362258864,-303.74388553,0.0003856,2]
[399447297,1766362258874,-367.30463184,0.0003856,2]
[399447298,1766362258883,-302.95619983,0.0003856,2]
[399447299,1766362258893,-594.28559279,0.0003856,2]
[399447300,1766362258906,-363.49948483,0.0003856,2]
[399447301,1766362258915,-300.0,0.0003856,2]
[399447302,1766362258925,-302.57000292,0.0003856,2]
[399447303,1766362258934,-576.44899553,0.0003856,2]
[399447304,1766362258944,-302.70668584,0.0003856,2]
[399447305,1766362258953,-303.74388553,0.0003856,2]
[399447306,1766362258962,-367.30463184,0.0003856,2]
[399447307,1766362258971,-302.95619983,0.0003856,2]
[399447308,1766362258980,-594.28559279,0.0003856,2]
[399447309,1766362258990,-363.49948483,0.0003856,2]
[399447310,1766362258999,-300.0,0.0003856,2]
[399447311,1766362259009,-302.57000292,0.0003856,2]
[399447312,1766362259018,-576.44899553,0.0003856,2]
[399447313,1766362259028,-302.70668584,0.0003856,2]
[399447314,1766362259038,-303.74388553,0.0003856,2]
[399447315,1766362259048,-511.10456705,0.0003856,2]
[399447316,1766362259058,-302.95619983,0.0003856,2]
[399447317,1766362259067,-594.28559279,0.0003856,2]
[399447318,1766362259077,-363.49948483,0.0003856,2]
[399447319,1766362259087,-300.0,0.0003856,2]
[399447320,1766362259098,-302.57000292,0.0003856,2]
[399447321,1766362259107,-576.44899553,0.0003856,2]
[399447322,1766362259118,-302.70668584,0.0003856,2]
[399447323,1766362259128,-303.74388553,0.0003856,2]
[399447324,1766362259138,-302.95619983,0.0003856,2]
[399447325,1766362259148,-594.28559279,0.0003856,2]
[399447326,1766362259157,-363.49948483,0.0003856,2]
[399447327,1766362259166,-300.0,0.0003856,2]
[399447328,1766362259176,-302.57000292,0.0003856,2]
[399447329,1766362259186,-576.44899553,0.0003856,2]
[399447330,1766362259196,-302.70668584,0.0003856,2]
[399447331,1766362259207,-303.74388553,0.0003856,2]
[399447332,1766362259217,-302.95619983,0.0003856,2]
[399447333,1766362259227,-594.28559279,0.0003856,2]
[399447334,1766362259237,-363.49948483,0.0003856,2]
[399447335,1766362259247,-384.82388116,0.0003856,2]
[399447336,1766362259257,-302.57000292,0.0003856,2]
[399447337,1766362259267,-576.44899553,0.0003856,2]
[399447338,1766362259277,-417.58985318,0.0003856,2]
[399447339,1766362259290,-303.74388553,0.0003856,2]
[399447340,1766362259300,-302.95619983,0.0003856,2]
[399447341,1766362259311,-594.28559279,0.0003856,2]
[399447342,1766362259321,-363.49948483,0.0003856,2]
[399447343,1766362259331,-302.57000292,0.0003856,2]
[399447344,1766362259341,-576.44899553,0.0003856,2]
[399447345,1766362259351,-303.74388553,0.0003856,2]
[399447346,1766362259360,-302.95619983,0.0003856,2]
[399447347,1766362259370,-594.28559279,0.0003856,2]
[399447348,1766362259379,-363.49948483,0.0003856,2]
[399447349,1766362259389,-302.57000292,0.0003856,2]
[399447350,1766362259399,-576.44899553,0.0003856,2]
[399447351,1766362259409,-303.74388553,0.0003856,2]
[399447352,1766362259419,-354.73725913,0.0003856,2]
[399447353,1766362259429,-594.28559279,0.0003856,2]
[399447354,1766362259439,-363.49948483,0.0003856,2]
[399447355,1766362259449,-417.05854763,0.0003856,2]
[399447356,1766362259459,-576.44899553,0.0003856,2]
[399447357,1766362259469,-413.99202308,0.0003856,2]
[399447358,1766362259479,-594.28559279,0.0003856,2]
[399447359,1766362259490,-363.49948483,0.0003856,2]
[399447360,1766362259499,-576.44899553,0.0003856,2]
[399447361,1766362259510,-594.28559279,0.0003856,2]
[399447362,1766362259521,-363.49948483,0.0003856,2]
[399447363,1766362259531,-576.44899553,0.0003856,2]
[399447364,1766362259542,-594.28559279,0.0003856,2]
[399447365,1766362259553,-363.49948483,0.0003856,2]
[399447366,1766362259563,-576.44899553,0.0003856,2]
[399447367,1766362259573,-594.28559279,0.0003856,2]
[399447368,1766362259586,-363.49948483,0.0003856,2]
[399447369,1766362259597,-576.44899553,0.0003856,2]
[399447370,1766362259608,-594.28559279,0.0003856,2]
[399447371,1766362259618,-363.49948483,0.0003856,2]
[399447372,1766362259628,-576.44899553,0.0003856,2]
[399447373,1766362259638,-594.28559279,0.0003856,2]
[399447374,1766362259649,-363.49948483,0.0003856,2]
[399447375,1766362259659,-576.44899553,0.0003856,2]
[399447376,1766362259670,-594.28559279,0.0003856,2]
[399447377,1766362259682,-363.49948483,0.0003856,2]
[399447378,1766362259693,-576.44899553,0.0003856,2]
[399447379,1766362259703,-3446.0,0.00038603,2]
[399447380,1766362259713,-1326.0,0.00038603,2]
[399447381,1766362259727,-612.0,0.00038603,2]
[399447382,1766362259737,-1609.0,0.00038603,2]
[399447383,1766362259748,-1262.0,0.00038603,2]
[399447384,1766362259758,-518.0,0.00038603,2]
[399447385,1766362259768,-911.0,0.00038603,2]
[399447386,1766362259779,-1197.0,0.00038603,2]